{"text_format":"3","workbook":"xlsx","n_sheets":3,"sheets":["PRICING SCHEDULE","Sheet1","Sheet2"],"not_rendered":{"images":1,"defined_names":2},"read":"whole","date_system":"1900"}

{"sheet":"PRICING SCHEDULE","index":0,"n_rows":45,"n_cols":12,"rows_kept":45,"merged":[[41,1,44,1],[41,2,41,5],[41,6,41,7],[42,2,42,5],[42,6,42,7],[43,2,43,5],[43,6,43,7],[44,2,44,5],[44,6,44,7]]}
[null,"SUPPLY CHAIN MANAGEMENT"]
[null,"Pricing schedule "]
["RFB No","RFB 2857-2023- Price Schedule - Limpopo Cleaning Hygiene Services "]
["RFB Title","PROVISION OF CLEANING AND HYGIENE SERVICES FOR SITA LIMPOPO OFFICES FOR A PERIOD OF THIRTY-SIX (36) MONTHS"]
["Bidder Name "]
[]
["1. INSTRUCTION FOR COMPLETING THE PRICING SCHEDULE"]
["(a)  Bidder must complete/enter YELLOW cells only"]
["(b)  Unit and Line prices must be VAT EXCLUSIVE and in South African Rand (ZAR) currency."]
["(c) The price must include all cost to deliver the goods or render the service, including all applicable taxes, duty fees, logistics/delivery, storage, labour, overtime and subsistance and travel"]
[]
["Item No","Goods/Service description","Unit of measure","Forex %","Qty ","Unit/Monthly Price Y1\n(Excl VAT","Line/Annual Price Y1","Unit/Monthly Price Y2\n(Excl VAT)","Line/Annual Price Y2","Unit/Monthly Price Y3\n(Excl VAT)","Line/Annual Price Y3","TOTAL CONTRACT VALUE"]
[1,"SITA LIMPOPO - CLEANING & HYGIENE SERVICES",{"$nulls":4},{"$f":"SUBTOTAL(9,G14:G33)","v":0},null,{"$f":"SUBTOTAL(9,I14:I33)","v":0},null,{"$f":"SUBTOTAL(9,K14:K33)","v":0},{"$f":"SUBTOTAL(9,L14:L33)","v":0}]
["1.1","Full-time Cleaners (40 hours a week) Polokwane Office","No. of Person","n/a",3,null,{"$f":"(E14*F14)*12","v":0},null,{"$f":"(E14*H14)*12","v":0},null,{"$f":"(E14*J14)*12","v":0},{"$f":"G14+I14+K14","v":0}]
["1.2","Periodic cleaners (27 hours a week) - SITA DoD","No. of Person","n/a",1,null,{"$f":"F15*12","v":0},null,{"$f":"H15*12","v":0},null,{"$f":"(E15*J15)*12","v":0},{"$f":"G15+I15+K15","v":0}]
["1.3","Periodic cleaners (27 hours a week) SITA Modimolle","No. of Person","n/a",1,null,0,null,0,null,0,{"$f":"G16+I16+K16","v":0}]
["1.4","Supply of monthly cleaning and hygiene consumables/material ","Monthly","n/a",12,null,{"$f":"F17*E17","v":0},null,{"$f":"H17*E17","v":0},null,{"$f":"J17*E17","v":0},0]
["1.5","Deep cleaning of toilets monthly","Monthly","n/a",12,null,0,null,0,null,0,0]
["1.6","Deep cleaning of carperts and couches (Quarterly)","Quarterly","n/a",4,null,0,null,0,null,0,0]
["1.7","Deep Cleaning of Chairs / couches (Bi-Annually)","Bi-annualy","n/a",2,null,0,null,0,null,0,0]
["1.8","Sanitary Bin Service/ waste removal (bi-weekly)","Bi-Weekly","n/a",24,null,0,null,0,null,0,0]
["1.9","Decontamination","monthly","n/a",12,null,0,null,0,null,0,{"$f":"G22+I22+K22","v":0}]
[2,"Hygiene Dispensers/ equipment/ sanitary bins maintenance Maintenance"]
[2.1,"\n1. Wall waste bins ( with inner dressing  bin bags) - x8\n2. Touch free Handpaper towel dispencer - (suitable for the supplied handpaper towel) x8\n3. She Packet Dispensers  x8\n4. Disinfactant Handsoap Dispenser (foam) (x8)\n5. Hand sanitiser dispenser x12\n6. Sanitary bins (with bin bags for sanitary waste disposal) x8\n7. Air-mist dispensers 10","Monthly","n/a",12,null,{"$f":"F24*E24","v":0},null,{"$f":"H24*E24","v":0},null,{"$f":"J24*E24","v":0},{"$f":"G24+I24+K24","v":0}]
[3,"Supply of Hygiene Dispensers/ equipment/ sanitary bins maintenance (Once off supply & installation)"]
[3.1,"Wall waste bins ( with inner dressing  bin bags) - x8","once off","n/a",8,null,{"$f":"F26*E26","v":0},{"$nulls":4},{"$f":"G26+I26+K26","v":0}]
[3.2,"2. Touch free Handpaper towel dispencer - (suitable for the supplied handpaper towel) x8","once off","n/a",8,null,0,{"$nulls":4},0]
[3.3,"3. She Packet Dispensers  x8","once off","n/a",8,null,0,{"$nulls":4},0]
[3.4,"4. Disinfactant Handsoap Dispenser (foam) x8","once off","n/a",8,null,0,{"$nulls":4},0]
[3.5,"5. Hand sanitiser dispenser x12","once off","n/a",12,null,0,{"$nulls":4},0]
[3.6,"6. Sanitary bins (with bin bags for sanitary waste disposal) x8","once off","n/a",8,null,0,{"$nulls":4},0]
[3.7,"7. Air-mist dispensers 10","once off","n/a",10,null,0,{"$nulls":4},0]
[]
[]
[]
[null,"TOTAL BID PRICE  (EXCL VAT)",{"$nulls":4},{"$f":"SUBTOTAL(9,G13:G35)","v":0},null,{"$f":"SUBTOTAL(9,I13:I35)","v":0},null,{"$f":"SUBTOTAL(9,K13:K35)","v":0},{"$f":"SUBTOTAL(9,L13:L35)","v":0}]
[null,"VAT (@15%)",{"$nulls":4},{"$f":"G36*0.15","v":0},null,{"$f":"I36*0.15","v":0},null,{"$f":"K36*0.15","v":0},{"$f":"L36*0.15","v":0}]
[null,"TOTAL  BID PRICE (INCL VAT)",{"$nulls":4},{"$f":"G36+G37","v":0},null,{"$f":"I36+I37","v":0},null,{"$f":"K36+K37","v":0},{"$f":"L36+L37","v":0}]
[]
[null,"NB: please do not capture any information in the area shaded in red"]
[]
[null,"I, the bidder, confirm that the price(s) and rate(s) quoted cover all the goods and/or works specified in the bidding documents; that the price(s) or rate(s) cover all my obligations and I accept that any mistakes regarding price(s), rate(s) or calculations will be at my own risk.\n[Note: First convert to PDF, then add signature]"]
[null,null,"Name",{"$nulls":3},"Capacity"]
[]
[null,null,"Signature (above)",{"$nulls":3},"Date"]

{"sheet":"Sheet1","index":1,"n_rows":20,"n_cols":1,"rows_kept":20}
["Cleaners (40 hours a week)"]
["Periodically cleaners (27 hours a week)"]
["Ablution of wash-rooms & toilets once a month"]
["Deep cleaning of carpets and couches – quarterly"]
["Deep cleaning of chairs - quarterly"]
["Surface cleaning detergents 5 L"]
["Provision & servicing of Sanitary Bins"]
["Toilet papers single ply (500 sheets) per unit"]
["Antibacterial Hand Soap/Foam (800ml - 1 L)"]
["Paper Towels (150ml/500 sheets)"]
["Airfreshner "]
["Multi Surface/ Wood Polish (750 ml-1 L)"]
["Multipurpose cleaner (750ml)"]
["Dishwasher soap (750ml)"]
["Bleach (750ml)"]
["Dish swabs small- medium (5 for washing/ 5 microfibre for drying)"]
["Scourer"]
["Refuse Bag Big (pack of 20)"]
["Small Waste Bag (pack of 200)"]
["Decontamination "]

{"sheet":"Sheet2","index":2,"n_rows":0,"n_cols":0,"rows_kept":0}